[Event "Titled Tuesday Blitz August 23 Late 2022"]
[White "Ibrahimli, Murad"]
[Black "Aldokhin, Ivan"]
[WhiteFideId "13410229"]
[BlackFideId "24115720"]
[WhiteElo "2109"]
[BlackElo "2246"]
[Result "1/2-1/2"]
[Round "07"]
[TimeControl "180+1"]
[Date "2022.08.23"]
[WhiteClock "0:00:06"]
[BlackClock "0:00:04"]

1. e4 {[%clk 0:03:00]}  c5 {[%clk 0:02:59]} 2. Nf3 {[%clk 0:02:59]}  e6 {[%clk 0:03:00]} 3. d4 {[%clk 0:02:59]}  cxd4 {[%clk 0:03:00]} 4. Nxd4 {[%clk 0:03:00]}  a6 {[%clk 0:03:01]} 5. Nc3 {[%clk 0:02:58]}  Qc7 {[%clk 0:03:01]} 6. Bd3 {[%clk 0:02:58]}  Nf6 {[%clk 0:03:01]} 7. O-O {[%clk 0:02:57]}  Bd6 {[%clk 0:03:00]} 8. h3 {[%clk 0:02:46]}  Nc6 {[%clk 0:03:00]} 9. Be3 {[%clk 0:02:43]}  Bf4 {[%clk 0:02:57]} 10. Qd2 {[%clk 0:02:36]}  Bxe3 {[%clk 0:02:51]} 11. Qxe3 {[%clk 0:02:37]}  d6 {[%clk 0:02:37]} 12. Rae1 {[%clk 0:02:28]}  O-O {[%clk 0:02:35]} 13. Nxc6 {[%clk 0:02:11]}  bxc6 {[%clk 0:02:32]} 14. e5 {[%clk 0:02:12]}  dxe5 {[%clk 0:01:57]} 15. Qxe5 {[%clk 0:02:13]}  Qxe5 {[%clk 0:01:57]} 16. Rxe5 {[%clk 0:02:11]}  Rd8 {[%clk 0:01:55]} 17. Ra5 {[%clk 0:01:58]}  Nd5 {[%clk 0:01:48]} 18. Ne4 {[%clk 0:01:57]}  Nb4 {[%clk 0:01:40]} 19. Rd1 {[%clk 0:01:55]}  Nxd3 {[%clk 0:01:24]} 20. Rxd3 {[%clk 0:01:56]}  Rxd3 {[%clk 0:01:20]} 21. cxd3 {[%clk 0:01:57]}  Kf8 {[%clk 0:01:19]} 22. Kf1 {[%clk 0:01:57]}  Ke7 {[%clk 0:01:19]} 23. Ke2 {[%clk 0:01:57]}  Rb8 {[%clk 0:01:14]} 24. b3 {[%clk 0:01:57]}  Rb5 {[%clk 0:01:13]} 25. Ra4 {[%clk 0:01:56]}  f5 {[%clk 0:01:09]} 26. Nd2 {[%clk 0:01:56]}  Re5+ {[%clk 0:01:02]} 27. Kd1 {[%clk 0:01:56]}  Rd5 {[%clk 0:01:00]} 28. Kc2 {[%clk 0:01:54]}  Re5 {[%clk 0:00:59]} 29. Kd1 {[%clk 0:01:46]}  Rd5 {[%clk 0:00:59]} 30. d4 {[%clk 0:01:38]}  c5 {[%clk 0:00:52]} 31. dxc5 {[%clk 0:01:39]}  Rxc5 {[%clk 0:00:51]} 32. Nc4 {[%clk 0:01:40]}  Bb7 {[%clk 0:00:42]} 33. f3 {[%clk 0:01:36]}  g5 {[%clk 0:00:42]} 34. Ke2 {[%clk 0:01:34]}  h5 {[%clk 0:00:41]} 35. Rb4 {[%clk 0:01:32]}  Bc6 {[%clk 0:00:36]} 36. Ke3 {[%clk 0:01:22]}  h4 {[%clk 0:00:32]} 37. a4 {[%clk 0:01:08]}  a5 {[%clk 0:00:22]} 38. Rb6 {[%clk 0:00:55]}  Bxa4 {[%clk 0:00:22]} 39. Kd4 {[%clk 0:00:51]}  Rd5+ {[%clk 0:00:18]} 40. Kc3 {[%clk 0:00:52]}  Bb5 {[%clk 0:00:13]} 41. Nxa5 {[%clk 0:00:50]}  Bf1 {[%clk 0:00:11]} 42. Nc6+ {[%clk 0:00:51]}  Kd7 {[%clk 0:00:06]} 43. Nd4 {[%clk 0:00:51]}  Bxg2 {[%clk 0:00:05]} 44. Nxe6 {[%clk 0:00:52]}  f4 {[%clk 0:00:02]} 45. b4 {[%clk 0:00:48]}  Rd1 {[%clk 0:00:02]} 46. Nc5+ {[%clk 0:00:47]}  Kc7 {[%clk 0:00:02]} 47. Rg6 {[%clk 0:00:46]}  Bxf3 {[%clk 0:00:02]} 48. Rxg5 {[%clk 0:00:46]}  Be2 {[%clk 0:00:02]} 49. Rg7+ {[%clk 0:00:44]}  Kc6 {[%clk 0:00:02]} 50. Rf7 {[%clk 0:00:44]}  f3 {[%clk 0:00:02]} 51. Ne4 {[%clk 0:00:44]}  Rd3+ {[%clk 0:00:02]} 52. Kc2 {[%clk 0:00:38]}  Rd4 {[%clk 0:00:02]} 53. Rf6+ {[%clk 0:00:36]}  Kd5 {[%clk 0:00:02]} 54. Nc3+ {[%clk 0:00:35]}  Ke5 {[%clk 0:00:02]} 55. Rf8 {[%clk 0:00:26]}  Rxb4 {[%clk 0:00:02]} 56. Kd2 {[%clk 0:00:24]}  Rb2+ {[%clk 0:00:02]} 57. Ke3 {[%clk 0:00:24]}  Rb3 {[%clk 0:00:02]} 58. Kd2 {[%clk 0:00:20]}  Kd4 {[%clk 0:00:02]} 59. Rf4+ {[%clk 0:00:17]}  Kc5 {[%clk 0:00:01]} 60. Ne4+ {[%clk 0:00:16]}  Kd4 {[%clk 0:00:01]} 61. Nf2+ {[%clk 0:00:15]}  Ke5 {[%clk 0:00:02]} 62. Rxh4 {[%clk 0:00:15]}  Rb2+ {[%clk 0:00:02]} 63. Ke3 {[%clk 0:00:16]}  Rb3+ {[%clk 0:00:02]} 64. Kd2 {[%clk 0:00:16]}  Rb2+ {[%clk 0:00:03]} 65. Kc3 {[%clk 0:00:17]}  Ra2 {[%clk 0:00:03]} 66. Kb3 {[%clk 0:00:11]}  Rd2 {[%clk 0:00:03]} 67. Kc3 {[%clk 0:00:10]}  Ra2 {[%clk 0:00:03]} 68. Kb3 {[%clk 0:00:11]}  Ra1 {[%clk 0:00:04]} 69. Re4+ {[%clk 0:00:10]}  Kf5 {[%clk 0:00:04]} 70. Re8 {[%clk 0:00:10]}  Rf1 {[%clk 0:00:04]} 71. Ng4 {[%clk 0:00:10]}  Kf4 {[%clk 0:00:04]} 72. Ne5 {[%clk 0:00:03]}  Rc1 {[%clk 0:00:04]} 73. Nxf3 {[%clk 0:00:02]}  Bxf3 {[%clk 0:00:04]} 74. Rd8 {[%clk 0:00:02]}  Kg3 {[%clk 0:00:03]} 75. Rd4 {[%clk 0:00:02]}  Kxh3 {[%clk 0:00:03]} 76. Kb4 {[%clk 0:00:03]}  Kg3 {[%clk 0:00:03]} 77. Rc4 {[%clk 0:00:03]}  Rd1 {[%clk 0:00:02]} 78. Rc3 {[%clk 0:00:03]}  Re1 {[%clk 0:00:03]} 79. Kc4 {[%clk 0:00:04]}  Re4+ {[%clk 0:00:03]} 80. Kd5 {[%clk 0:00:05]}  Re3+ {[%clk 0:00:02]} 81. Kd4 {[%clk 0:00:05]}  Re4+ {[%clk 0:00:03]} 82. Kd5 {[%clk 0:00:05]}  Ra4+ {[%clk 0:00:03]} 83. Kc5 {[%clk 0:00:05]}  Kf4 {[%clk 0:00:03]} 84. Rc4+ {[%clk 0:00:05]}  Rxc4+ {[%clk 0:00:04]} 85. Kxc4 {[%clk 0:00:06]} 1/2-1/2


[Site "https://www.chess.com"]

[Event "Titled Tuesday Blitz August 23 Late 2022"]
[White "Jones, Gawain C B"]
[Black "Diaz Perez, Michel Alejandro"]
[WhiteFideId "409561"]
[BlackFideId "3517179"]
[WhiteElo "2657"]
[BlackElo "2313"]
[Result "1-0"]
[Round "07"]
[TimeControl "180+1"]
[Date "2022.08.23"]
[WhiteClock "0:02:04"]
[BlackClock "0:01:12"]

1. d4 {[%clk 0:03:00]}  Nf6 {[%clk 0:02:59]} 2. Bg5 {[%clk 0:03:00]}  c5 {[%clk 0:02:56]} 3. Bxf6 {[%clk 0:02:58]}  gxf6 {[%clk 0:02:53]} 4. Nc3 {[%clk 0:02:59]}  cxd4 {[%clk 0:02:52]} 5. Qxd4 {[%clk 0:03:00]}  Nc6 {[%clk 0:02:53]} 6. Qh4 {[%clk 0:02:53]}  e6 {[%clk 0:02:52]} 7. O-O-O {[%clk 0:02:52]}  f5 {[%clk 0:02:52]} 8. Qxd8+ {[%clk 0:02:51]}  Kxd8 {[%clk 0:02:53]} 9. g3 {[%clk 0:02:51]}  a6 {[%clk 0:02:52]} 10. Bg2 {[%clk 0:02:51]}  Kc7 {[%clk 0:02:53]} 11. Nh3 {[%clk 0:02:49]}  b5 {[%clk 0:02:45]} 12. e3 {[%clk 0:02:48]}  Bb7 {[%clk 0:02:45]} 13. Ng5 {[%clk 0:02:48]}  Be7 {[%clk 0:02:31]} 14. h4 {[%clk 0:02:43]}  Raf8 {[%clk 0:02:27]} 15. Rd2 {[%clk 0:02:37]}  h6 {[%clk 0:02:26]} 16. Nh3 {[%clk 0:02:36]}  Rhg8 {[%clk 0:02:22]} 17. Nf4 {[%clk 0:02:34]}  Rd8 {[%clk 0:02:15]} 18. Rhd1 {[%clk 0:02:29]}  d5 {[%clk 0:02:04]} 19. Ncxd5+ {[%clk 0:02:17]}  exd5 {[%clk 0:02:03]} 20. Nxd5+ {[%clk 0:02:18]}  Kb8 {[%clk 0:01:41]} 21. Nxe7 {[%clk 0:02:16]}  Rxd2 {[%clk 0:01:41]} 22. Rxd2 {[%clk 0:02:16]}  Nxe7 {[%clk 0:01:36]} 23. Bxb7 {[%clk 0:02:15]}  Kc7 {[%clk 0:01:12]} 24. Bxa6 {[%clk 0:02:12]}  b4 {[%clk 0:01:13]} 25. Bb5 {[%clk 0:02:08]}  Kb6 {[%clk 0:01:12]} 26. Bc4 {[%clk 0:02:04]} 1-0


[Site "https://www.chess.com"]

[Event "Titled Tuesday Blitz August 23 Late 2022"]
[White "Kamsky, Gata"]
[Black "Naroditsky, Daniel"]
[WhiteFideId "2000024"]
[BlackFideId "2026961"]
[WhiteElo "2666"]
[BlackElo "2628"]
[Result "0-1"]
[Round "07"]
[TimeControl "180+1"]
[Date "2022.08.23"]
[WhiteClock "0:00:02"]
[BlackClock "0:00:05"]

1. d4 {[%clk 0:03:00]}  Nf6 {[%clk 0:02:59]} 2. Bf4 {[%clk 0:03:01]}  c5 {[%clk 0:02:58]} 3. e3 {[%clk 0:03:00]}  cxd4 {[%clk 0:02:58]} 4. exd4 {[%clk 0:03:00]}  Qb6 {[%clk 0:02:59]} 5. Na3 {[%clk 0:02:21]}  d6 {[%clk 0:02:45]} 6. Nc4 {[%clk 0:02:20]}  Qc7 {[%clk 0:02:45]} 7. Nf3 {[%clk 0:02:13]}  g6 {[%clk 0:02:46]} 8. h3 {[%clk 0:02:13]}  Bg7 {[%clk 0:02:46]} 9. Be2 {[%clk 0:02:11]}  O-O {[%clk 0:02:47]} 10. O-O {[%clk 0:02:10]}  b6 {[%clk 0:02:46]} 11. Ne3 {[%clk 0:02:08]}  Bb7 {[%clk 0:02:45]} 12. c4 {[%clk 0:02:07]}  Nbd7 {[%clk 0:02:44]} 13. Rc1 {[%clk 0:02:05]}  e5 {[%clk 0:02:40]} 14. Bh2 {[%clk 0:02:02]}  Rfe8 {[%clk 0:02:40]} 15. b4 {[%clk 0:01:58]}  Rac8 {[%clk 0:02:35]} 16. dxe5 {[%clk 0:01:56]}  dxe5 {[%clk 0:02:30]} 17. Qe1 {[%clk 0:01:52]}  Qc6 {[%clk 0:02:21]} 18. Qd1 {[%clk 0:01:46]}  Rcd8 {[%clk 0:02:01]} 19. Qb3 {[%clk 0:01:46]}  Nh5 {[%clk 0:01:34]} 20. Rfd1 {[%clk 0:01:44]}  Nf4 {[%clk 0:01:33]} 21. Bf1 {[%clk 0:01:43]}  Bh6 {[%clk 0:01:16]} 22. Bxf4 {[%clk 0:00:57]}  Bxf4 {[%clk 0:01:15]} 23. c5 {[%clk 0:00:53]}  bxc5 {[%clk 0:01:11]} 24. bxc5 {[%clk 0:00:52]}  Nxc5 {[%clk 0:00:55]} 25. Rxc5 {[%clk 0:00:30]}  Qxc5 {[%clk 0:00:56]} 26. Rxd8 {[%clk 0:00:29]}  Rxd8 {[%clk 0:00:55]} 27. Qxb7 {[%clk 0:00:30]}  Bxe3 {[%clk 0:00:49]} 28. fxe3 {[%clk 0:00:29]}  Qxe3+ {[%clk 0:00:50]} 29. Kh2 {[%clk 0:00:27]}  Qf4+ {[%clk 0:00:41]} 30. g3 {[%clk 0:00:26]}  Qe3 {[%clk 0:00:37]} 31. Bg2 {[%clk 0:00:21]}  Kg7 {[%clk 0:00:20]} 32. Qe7 {[%clk 0:00:20]}  Rd3 {[%clk 0:00:15]} 33. h4 {[%clk 0:00:16]}  h6 {[%clk 0:00:11]} 34. h5 {[%clk 0:00:15]}  g5 {[%clk 0:00:09]} 35. Qxe5+ {[%clk 0:00:12]}  Qxe5 {[%clk 0:00:10]} 36. Nxe5 {[%clk 0:00:12]}  Ra3 {[%clk 0:00:09]} 37. Nc4 {[%clk 0:00:11]}  Rxa2 {[%clk 0:00:10]} 38. Nd6 {[%clk 0:00:11]}  a5 {[%clk 0:00:07]} 39. Nf5+ {[%clk 0:00:09]}  Kf8 {[%clk 0:00:03]} 40. g4 {[%clk 0:00:06]}  a4 {[%clk 0:00:04]} 41. Kg3 {[%clk 0:00:06]}  a3 {[%clk 0:00:04]} 42. Bd5 {[%clk 0:00:06]}  Rd2 {[%clk 0:00:03]} 43. Bc4 {[%clk 0:00:06]}  Rc2 {[%clk 0:00:04]} 44. Bd5 {[%clk 0:00:06]}  Rc3+ {[%clk 0:00:02]} 45. Kf2 {[%clk 0:00:05]}  a2 {[%clk 0:00:02]} 46. Bxa2 {[%clk 0:00:05]}  Rc2+ {[%clk 0:00:03]} 47. Kf3 {[%clk 0:00:05]}  Rxa2 {[%clk 0:00:04]} 48. Nxh6 {[%clk 0:00:06]}  Ra3+ {[%clk 0:00:04]} 49. Ke4 {[%clk 0:00:05]}  Kg7 {[%clk 0:00:05]} 50. Nf5+ {[%clk 0:00:05]}  Kf6 {[%clk 0:00:05]} 51. Ne3 {[%clk 0:00:01]}  Ra4+ {[%clk 0:00:05]} 52. Kf3 {[%clk 0:00:02]}  Ke5 {[%clk 0:00:05]} 0-1


[Site "https://www.chess.com"]

[Event "Titled Tuesday Blitz August 23 Late 2022"]
[White "Makarian, Rudik"]
[Black "Suder, Jakub"]
[WhiteFideId "44105681"]
[BlackFideId "1195310"]
[WhiteElo "2403"]
[BlackElo "2095"]
[Result "1-0"]
[Round "07"]
[TimeControl "180+1"]
[Date "2022.08.23"]
[WhiteClock "0:00:19"]
[BlackClock "0:00:36"]

1. d3 {[%clk 0:02:56]}  d5 {[%clk 0:02:57]} 2. f4 {[%clk 0:02:56]}  Nf6 {[%clk 0:02:52]} 3. Nf3 {[%clk 0:02:52]}  c5 {[%clk 0:02:44]} 4. g3 {[%clk 0:02:51]}  Nc6 {[%clk 0:02:42]} 5. Bg2 {[%clk 0:02:51]}  g6 {[%clk 0:02:40]} 6. O-O {[%clk 0:02:51]}  Bg7 {[%clk 0:02:40]} 7. Nc3 {[%clk 0:02:50]}  O-O {[%clk 0:02:40]} 8. e4 {[%clk 0:02:43]}  dxe4 {[%clk 0:02:36]} 9. dxe4 {[%clk 0:02:42]}  Bg4 {[%clk 0:02:32]} 10. Be3 {[%clk 0:02:40]}  Nd7 {[%clk 0:02:23]} 11. e5 {[%clk 0:02:38]}  h6 {[%clk 0:02:05]} 12. h3 {[%clk 0:02:35]}  Be6 {[%clk 0:02:06]} 13. Qe2 {[%clk 0:02:30]}  Qa5 {[%clk 0:01:56]} 14. Nh4 {[%clk 0:02:25]}  Nd4 {[%clk 0:01:54]} 15. Qf2 {[%clk 0:02:15]}  Nf5 {[%clk 0:01:52]} 16. Nxf5 {[%clk 0:02:13]}  gxf5 {[%clk 0:01:52]} 17. Rfd1 {[%clk 0:01:43]}  Rfd8 {[%clk 0:01:40]} 18. Nd5 {[%clk 0:01:37]}  Bf8 {[%clk 0:01:20]} 19. c4 {[%clk 0:01:34]}  Nb6 {[%clk 0:01:21]} 20. b3 {[%clk 0:01:31]}  Rac8 {[%clk 0:01:18]} 21. Kh2 {[%clk 0:01:29]}  Rd7 {[%clk 0:01:12]} 22. Rd2 {[%clk 0:01:23]}  Bxd5 {[%clk 0:01:00]} 23. cxd5 {[%clk 0:01:19]}  Qc3 {[%clk 0:01:00]} 24. Rad1 {[%clk 0:01:17]}  c4 {[%clk 0:01:00]} 25. g4 {[%clk 0:01:02]}  fxg4 {[%clk 0:00:57]} 26. Be4 {[%clk 0:00:46]}  cxb3 {[%clk 0:00:51]} 27. Rg1 {[%clk 0:00:37]}  bxa2 {[%clk 0:00:45]} 28. Rxg4+ {[%clk 0:00:37]}  Kh8 {[%clk 0:00:45]} 29. Qg2 {[%clk 0:00:25]}  Bg7 {[%clk 0:00:36]} 30. Rxg7 {[%clk 0:00:24]}  a1=Q {[%clk 0:00:36]} 31. Rh7# {[%clk 0:00:19]} 1-0


[Site "https://www.chess.com"]

[Event "Titled Tuesday Blitz August 23 Late 2022"]
[White "Martic, Ivan"]
[Black "Seo, Jung Min"]
[WhiteFideId "929301"]
[BlackFideId "1734687"]
[WhiteElo "2355"]
[BlackElo "2414"]
[Result "0-1"]
[Round "07"]
[TimeControl "180+1"]
[Date "2022.08.23"]
[WhiteClock "0:00:02"]
[BlackClock "0:00:59"]

1. e4 {[%clk 0:03:00]}  c5 {[%clk 0:02:58]} 2. Nf3 {[%clk 0:03:00]}  Nc6 {[%clk 0:02:58]} 3. d4 {[%clk 0:03:00]}  cxd4 {[%clk 0:02:58]} 4. Nxd4 {[%clk 0:03:01]}  Nf6 {[%clk 0:02:58]} 5. Nc3 {[%clk 0:03:01]}  d6 {[%clk 0:02:58]} 6. Bg5 {[%clk 0:03:00]}  Bd7 {[%clk 0:02:56]} 7. Be2 {[%clk 0:02:54]}  e6 {[%clk 0:02:52]} 8. Bxf6 {[%clk 0:02:49]}  gxf6 {[%clk 0:02:51]} 9. O-O {[%clk 0:02:49]}  a6 {[%clk 0:02:50]} 10. Nb3 {[%clk 0:02:46]}  b5 {[%clk 0:02:48]} 11. a3 {[%clk 0:02:41]}  Rc8 {[%clk 0:02:46]} 12. f4 {[%clk 0:02:39]}  Na5 {[%clk 0:02:38]} 13. Nxa5 {[%clk 0:02:36]}  Qxa5 {[%clk 0:02:38]} 14. Bh5 {[%clk 0:02:33]}  Ke7 {[%clk 0:02:34]} 15. f5 {[%clk 0:02:28]}  Bh6 {[%clk 0:02:33]} 16. Rf3 {[%clk 0:01:55]}  Rc4 {[%clk 0:02:19]} 17. Kh1 {[%clk 0:01:34]}  Qb6 {[%clk 0:02:18]} 18. Rh3 {[%clk 0:01:18]}  Bf4 {[%clk 0:02:08]} 19. Qg4 {[%clk 0:00:59]}  Be5 {[%clk 0:01:59]} 20. Qg7 {[%clk 0:00:52]}  Rf8 {[%clk 0:01:59]} 21. Bg4 {[%clk 0:00:40]}  Bxc3 {[%clk 0:01:52]} 22. bxc3 {[%clk 0:00:28]}  Rxe4 {[%clk 0:01:44]} 23. fxe6 {[%clk 0:00:28]}  Bxe6 {[%clk 0:01:44]} 24. Bxe6 {[%clk 0:00:22]}  Rxe6 {[%clk 0:01:44]} 25. Rxh7 {[%clk 0:00:19]}  Qf2 {[%clk 0:01:43]} 26. h3 {[%clk 0:00:17]}  Qxc2 {[%clk 0:01:38]} 27. Rf1 {[%clk 0:00:15]}  Qxc3 {[%clk 0:01:36]} 28. Rh5 {[%clk 0:00:10]}  Re1 {[%clk 0:01:28]} 29. Rf5 {[%clk 0:00:09]}  Rxf1+ {[%clk 0:01:27]} 30. Rxf1 {[%clk 0:00:10]}  Rc8 {[%clk 0:01:22]} 31. Qg4 {[%clk 0:00:08]}  Rc5 {[%clk 0:01:21]} 32. Qf4 {[%clk 0:00:05]}  Qe5 {[%clk 0:01:14]} 33. Qf3 {[%clk 0:00:05]}  a5 {[%clk 0:01:09]} 34. Qa8 {[%clk 0:00:03]}  a4 {[%clk 0:01:06]} 35. Qb7+ {[%clk 0:00:02]}  Kf8 {[%clk 0:01:06]} 36. Qf3 {[%clk 0:00:02]}  Rc3 {[%clk 0:01:03]} 37. Qf2 {[%clk 0:00:01]}  Rxa3 {[%clk 0:01:00]} 38. Re1 {[%clk 0:00:02]}  Ra1 {[%clk 0:00:59]} 0-1


[Site "https://www.chess.com"]

[Event "Titled Tuesday Blitz August 23 Late 2022"]
[White "Martinez Alcantara, Jose Eduardo"]
[Black "Melkumyan, Hrant"]
[WhiteFideId "3805662"]
[BlackFideId "13302485"]
[WhiteElo "2703"]
[BlackElo "2604"]
[Result "1/2-1/2"]
[Round "07"]
[TimeControl "180+1"]
[Date "2022.08.23"]
[WhiteClock "0:00:02"]
[BlackClock "0:00:04"]

1. e4 {[%clk 0:03:00]}  c5 {[%clk 0:03:00]} 2. Nf3 {[%clk 0:03:00]}  Nc6 {[%clk 0:03:00]} 3. c3 {[%clk 0:03:01]}  Nf6 {[%clk 0:02:57]} 4. Bd3 {[%clk 0:03:01]}  e5 {[%clk 0:02:40]} 5. Qe2 {[%clk 0:02:53]}  g6 {[%clk 0:02:38]} 6. Bc4 {[%clk 0:02:53]}  Bg7 {[%clk 0:02:38]} 7. d3 {[%clk 0:02:53]}  O-O {[%clk 0:02:38]} 8. Bg5 {[%clk 0:02:53]}  d6 {[%clk 0:02:36]} 9. Nbd2 {[%clk 0:02:50]}  Na5 {[%clk 0:02:30]} 10. Bd5 {[%clk 0:02:42]}  h6 {[%clk 0:02:26]} 11. Bxf6 {[%clk 0:02:42]}  Qxf6 {[%clk 0:02:24]} 12. Nf1 {[%clk 0:02:34]}  Nc6 {[%clk 0:02:21]} 13. Ne3 {[%clk 0:02:34]}  Ne7 {[%clk 0:02:21]} 14. Bc4 {[%clk 0:02:33]}  h5 {[%clk 0:02:19]} 15. h3 {[%clk 0:02:24]}  Bh6 {[%clk 0:02:05]} 16. g4 {[%clk 0:02:19]}  h4 {[%clk 0:02:05]} 17. Rg1 {[%clk 0:01:53]}  Bg5 {[%clk 0:01:59]} 18. Nf5 {[%clk 0:01:41]}  Rd8 {[%clk 0:01:26]} 19. Nxg5 {[%clk 0:01:00]}  Qxg5 {[%clk 0:01:25]} 20. Ne3 {[%clk 0:01:01]}  Bd7 {[%clk 0:01:21]} 21. Qf3 {[%clk 0:00:58]}  Rf8 {[%clk 0:01:15]} 22. Ke2 {[%clk 0:00:54]}  b5 {[%clk 0:01:14]} 23. Bb3 {[%clk 0:00:51]}  a5 {[%clk 0:01:15]} 24. a3 {[%clk 0:00:50]}  Rab8 {[%clk 0:01:14]} 25. Nf5 {[%clk 0:00:40]}  a4 {[%clk 0:01:13]} 26. Nxe7+ {[%clk 0:00:39]}  Qxe7 {[%clk 0:01:12]} 27. Bd5 {[%clk 0:00:39]}  g5 {[%clk 0:01:02]} 28. Rgc1 {[%clk 0:00:35]}  Kg7 {[%clk 0:00:59]} 29. Qe3 {[%clk 0:00:28]}  Rfc8 {[%clk 0:00:53]} 30. Rc2 {[%clk 0:00:26]}  Be8 {[%clk 0:00:53]} 31. Rac1 {[%clk 0:00:25]}  Qf6 {[%clk 0:00:51]} 32. f3 {[%clk 0:00:25]}  Rb6 {[%clk 0:00:48]} 33. Ke1 {[%clk 0:00:26]}  Rcb8 {[%clk 0:00:48]} 34. Kf1 {[%clk 0:00:13]}  b4 {[%clk 0:00:48]} 35. cxb4 {[%clk 0:00:14]}  cxb4 {[%clk 0:00:49]} 36. Rc7 {[%clk 0:00:08]}  bxa3 {[%clk 0:00:48]} 37. bxa3 {[%clk 0:00:09]}  Rb2 {[%clk 0:00:41]} 38. Kg1 {[%clk 0:00:09]}  Qf4 {[%clk 0:00:20]} 39. Qxf4 {[%clk 0:00:09]}  exf4 {[%clk 0:00:21]} 40. R7c2 {[%clk 0:00:10]}  R2b6 {[%clk 0:00:16]} 41. d4 {[%clk 0:00:09]}  Kf6 {[%clk 0:00:15]} 42. Rc8 {[%clk 0:00:07]}  Bd7 {[%clk 0:00:06]} 43. R8c7 {[%clk 0:00:07]}  Be6 {[%clk 0:00:06]} 44. Bxe6 {[%clk 0:00:05]}  Kxe6 {[%clk 0:00:07]} 45. d5+ {[%clk 0:00:02]}  Kf6 {[%clk 0:00:06]} 46. Rd7 {[%clk 0:00:03]}  Rf8 {[%clk 0:00:05]} 47. Rc6 {[%clk 0:00:03]}  Rxc6 {[%clk 0:00:03]} 48. dxc6 {[%clk 0:00:04]}  Ke6 {[%clk 0:00:04]} 49. Ra7 {[%clk 0:00:03]}  Rb8 {[%clk 0:00:03]} 50. Rxa4 {[%clk 0:00:03]}  Rb1+ {[%clk 0:00:03]} 51. Kf2 {[%clk 0:00:03]}  Rc1 {[%clk 0:00:04]} 52. Ra5 {[%clk 0:00:04]}  Rxc6 {[%clk 0:00:04]} 53. Rxg5 {[%clk 0:00:04]}  Rc2+ {[%clk 0:00:04]} 54. Kf1 {[%clk 0:00:04]}  Rc3 {[%clk 0:00:05]} 55. Kg2 {[%clk 0:00:04]}  Rc2+ {[%clk 0:00:05]} 56. Kg1 {[%clk 0:00:04]}  Rc3 {[%clk 0:00:06]} 57. Kg2 {[%clk 0:00:04]}  Rc2+ {[%clk 0:00:03]} 58. Kf1 {[%clk 0:00:05]}  Rc3 {[%clk 0:00:04]} 59. Ke2 {[%clk 0:00:06]}  Rc2+ {[%clk 0:00:03]} 60. Ke1 {[%clk 0:00:06]}  Rc3 {[%clk 0:00:03]} 61. Ke2 {[%clk 0:00:03]}  Rc2+ {[%clk 0:00:03]} 62. Ke1 {[%clk 0:00:01]}  Rc3 {[%clk 0:00:04]} 63. Kf2 {[%clk 0:00:01]}  Rc2+ {[%clk 0:00:04]} 64. Kf1 {[%clk 0:00:02]} 1/2-1/2


[Site "https://www.chess.com"]

[Event "Titled Tuesday Blitz August 23 Late 2022"]
[White "Mathieu, Phileas"]
[Black "Preotu, Razvan"]
[WhiteFideId "36048410"]
[BlackFideId "2613280"]
[WhiteElo "2138"]
[BlackElo "2407"]
[Result "1/2-1/2"]
[Round "07"]
[TimeControl "180+1"]
[Date "2022.08.23"]
[WhiteClock "0:00:08"]
[BlackClock "0:00:01"]

1. e4 {[%clk 0:03:00]}  c5 {[%clk 0:02:59]} 2. Nc3 {[%clk 0:02:59]}  d6 {[%clk 0:02:58]} 3. d4 {[%clk 0:02:59]}  cxd4 {[%clk 0:02:59]} 4. Qxd4 {[%clk 0:02:59]}  Nc6 {[%clk 0:02:59]} 5. Qd2 {[%clk 0:02:59]}  g6 {[%clk 0:02:59]} 6. b3 {[%clk 0:02:59]}  Bh6 {[%clk 0:02:59]} 7. f4 {[%clk 0:02:59]}  Nf6 {[%clk 0:02:59]} 8. Bb2 {[%clk 0:02:58]}  O-O {[%clk 0:03:00]} 9. O-O-O {[%clk 0:02:58]}  e5 {[%clk 0:03:00]} 10. g3 {[%clk 0:02:58]}  Nd4 {[%clk 0:02:54]} 11. Nge2 {[%clk 0:02:56]}  Bg4 {[%clk 0:02:52]} 12. Nxd4 {[%clk 0:02:55]}  exd4 {[%clk 0:02:51]} 13. Qxd4 {[%clk 0:02:54]}  Bxd1 {[%clk 0:02:52]} 14. Nxd1 {[%clk 0:02:55]}  Bg7 {[%clk 0:02:51]} 15. Bc4 {[%clk 0:02:45]}  d5 {[%clk 0:02:39]} 16. Bxd5 {[%clk 0:02:37]}  Qb6 {[%clk 0:02:32]} 17. Qxb6 {[%clk 0:02:10]}  axb6 {[%clk 0:02:32]} 18. Bxb7 {[%clk 0:02:09]}  Ra7 {[%clk 0:02:33]} 19. e5 {[%clk 0:02:09]}  Rxb7 {[%clk 0:02:11]} 20. exf6 {[%clk 0:02:08]}  Bh6 {[%clk 0:02:11]} 21. Ne3 {[%clk 0:01:57]}  Rd8 {[%clk 0:02:10]} 22. Rd1 {[%clk 0:01:52]}  Rxd1+ {[%clk 0:02:09]} 23. Kxd1 {[%clk 0:01:53]}  Rd7+ {[%clk 0:02:06]} 24. Ke2 {[%clk 0:01:53]}  Bf8 {[%clk 0:02:05]} 25. c4 {[%clk 0:01:53]}  Bc5 {[%clk 0:01:43]} 26. Nd5 {[%clk 0:01:52]}  b5 {[%clk 0:01:44]} 27. Kd3 {[%clk 0:01:13]}  Bg1 {[%clk 0:01:43]} 28. h3 {[%clk 0:01:11]}  Bh2 {[%clk 0:01:43]} 29. Be5 {[%clk 0:01:05]}  Bxg3 {[%clk 0:01:42]} 30. Ke4 {[%clk 0:01:05]}  bxc4 {[%clk 0:01:41]} 31. bxc4 {[%clk 0:01:06]}  Bf2 {[%clk 0:01:38]} 32. Bd4 {[%clk 0:01:04]}  Bxd4 {[%clk 0:01:36]} 33. Kxd4 {[%clk 0:01:05]}  Kf8 {[%clk 0:01:37]} 34. c5 {[%clk 0:01:03]}  Ke8 {[%clk 0:01:36]} 35. c6 {[%clk 0:00:55]}  Ra7 {[%clk 0:01:36]} 36. Ne7 {[%clk 0:00:45]}  Kd8 {[%clk 0:01:29]} 37. Kd5 {[%clk 0:00:37]}  Rxa2 {[%clk 0:01:28]} 38. Kd6 {[%clk 0:00:37]}  Rd2+ {[%clk 0:01:26]} 39. Nd5 {[%clk 0:00:37]}  Kc8 {[%clk 0:00:57]} 40. c7 {[%clk 0:00:23]}  Kb7 {[%clk 0:00:37]} 41. h4 {[%clk 0:00:22]}  h5 {[%clk 0:00:20]} 42. Kc5 {[%clk 0:00:11]}  Rc2+ {[%clk 0:00:09]} 43. Kd6 {[%clk 0:00:11]}  Rd2 {[%clk 0:00:10]} 44. Kc5 {[%clk 0:00:10]}  Rd1 {[%clk 0:00:07]} 45. Kd6 {[%clk 0:00:10]}  Rd3 {[%clk 0:00:06]} 46. Ke5 {[%clk 0:00:08]}  Rd1 {[%clk 0:00:01]} 47. Kd6 {[%clk 0:00:08]}  Rd2 {[%clk 0:00:01]} 1/2-1/2


[Site "https://www.chess.com"]